[Event "Titled Tuesday Blitz December 13 Late 2022"]
[White "Forgacs, Attila Jr."]
[Black "Harshavardhan G B"]
[WhiteFideId "773654"]
[BlackFideId "25059009"]
[WhiteElo "2409"]
[BlackElo "2753"]
[Result "0-1"]
[Round "01"]
[TimeControl "180+1"]
[Date "2022.12.14"]
[WhiteClock "0:00:05"]
[BlackClock "0:00:28"]

1. e4 {[%clk 0:02:59]}  e5 {[%clk 0:02:45]} 2. Nf3 {[%clk 0:02:58]}  Nc6 {[%clk 0:02:45]} 3. Bb5 {[%clk 0:02:59]}  a6 {[%clk 0:02:44]} 4. Ba4 {[%clk 0:02:59]}  d6 {[%clk 0:02:44]} 5. O-O {[%clk 0:02:56]}  Bg4 {[%clk 0:02:43]} 6. h3 {[%clk 0:02:54]}  h5 {[%clk 0:02:43]} 7. d4 {[%clk 0:02:54]}  b5 {[%clk 0:02:42]} 8. Bb3 {[%clk 0:02:55]}  Nxd4 {[%clk 0:02:42]} 9. hxg4 {[%clk 0:02:55]}  Nxb3 {[%clk 0:02:40]} 10. axb3 {[%clk 0:02:56]}  hxg4 {[%clk 0:02:40]} 11. Ng5 {[%clk 0:02:56]}  Qd7 {[%clk 0:02:35]} 12. c4 {[%clk 0:02:54]}  b4 {[%clk 0:02:26]} 13. c5 {[%clk 0:02:37]}  c6 {[%clk 0:02:25]} 14. Nd2 {[%clk 0:02:17]}  d5 {[%clk 0:02:04]} 15. Nc4 {[%clk 0:01:53]}  dxc4 {[%clk 0:01:56]} 16. Qxd7+ {[%clk 0:01:54]}  Kxd7 {[%clk 0:01:56]} 17. Nxf7 {[%clk 0:01:55]}  Rh5 {[%clk 0:01:56]} 18. Rd1+ {[%clk 0:01:34]}  Kc7 {[%clk 0:01:40]} 19. bxc4 {[%clk 0:01:27]}  Bxc5 {[%clk 0:01:38]} 20. Be3 {[%clk 0:01:10]}  Bxe3 {[%clk 0:01:36]} 21. fxe3 {[%clk 0:01:11]}  Nf6 {[%clk 0:01:35]} 22. Nd6 {[%clk 0:01:05]}  c5 {[%clk 0:01:23]} 23. Nf5 {[%clk 0:00:39]}  Rah8 {[%clk 0:01:09]} 24. Nxg7 {[%clk 0:00:33]}  Rh1+ {[%clk 0:01:08]} 25. Kf2 {[%clk 0:00:34]}  Nxe4+ {[%clk 0:01:07]} 26. Ke2 {[%clk 0:00:34]}  Rxd1 {[%clk 0:01:05]} 27. Rxd1 {[%clk 0:00:33]}  Rh2 {[%clk 0:00:59]} 28. Ne6+ {[%clk 0:00:31]}  Kc6 {[%clk 0:00:54]} 29. Nd8+ {[%clk 0:00:18]}  Kb6 {[%clk 0:00:54]} 30. Rg1 {[%clk 0:00:16]}  Nd6 {[%clk 0:00:51]} 31. b3 {[%clk 0:00:15]}  Rh8 {[%clk 0:00:46]} 32. Ne6 {[%clk 0:00:14]}  Ne4 {[%clk 0:00:44]} 33. Ra1 {[%clk 0:00:04]}  a5 {[%clk 0:00:38]} 34. Rg1 {[%clk 0:00:01]}  Re8 {[%clk 0:00:38]} 35. Ng7 {[%clk 0:00:01]}  Rf8 {[%clk 0:00:34]} 36. Ne6 {[%clk 0:00:01]}  Rf2+ {[%clk 0:00:33]} 37. Ke1 {[%clk 0:00:01]}  Rb2 {[%clk 0:00:33]} 38. Rf1 {[%clk 0:00:01]}  Rb1+ {[%clk 0:00:33]} 39. Ke2 {[%clk 0:00:02]}  Ng3+ {[%clk 0:00:33]} 40. Kf2 {[%clk 0:00:02]}  Nxf1 {[%clk 0:00:33]} 41. Nd8 {[%clk 0:00:02]}  Nd2 {[%clk 0:00:32]} 42. Nf7 {[%clk 0:00:03]}  Ne4+ {[%clk 0:00:29]} 43. Ke2 {[%clk 0:00:03]}  Rb2+ {[%clk 0:00:28]} 44. Ke1 {[%clk 0:00:04]}  Rxb3 {[%clk 0:00:28]} 45. Nxe5 {[%clk 0:00:04]}  Rxe3+ {[%clk 0:00:28]} 46. Kd1 {[%clk 0:00:05]}  Nc3+ {[%clk 0:00:28]} 47. Kc2 {[%clk 0:00:05]}  Rxe5 {[%clk 0:00:28]} 0-1


[Site "https://www.chess.com"]

[Event "Titled Tuesday Blitz December 13 Late 2022"]
[White "Freile Martin, Javier"]
[Black "Bernabeu Lopez, Carlos Javier"]
[WhiteFideId "3600165"]
[BlackFideId "2235366"]
[WhiteElo "2355"]
[BlackElo "2324"]
[Result "0-1"]
[Round "01"]
[TimeControl "180+1"]
[Date "2022.12.14"]
[WhiteClock "0:01:01"]
[BlackClock "0:01:38"]

1. d4 {[%clk 0:02:58]}  Nf6 {[%clk 0:03:00]} 2. c4 {[%clk 0:02:53]}  g6 {[%clk 0:03:00]} 3. Nc3 {[%clk 0:02:53]}  Bg7 {[%clk 0:03:00]} 4. e4 {[%clk 0:02:52]}  d6 {[%clk 0:03:01]} 5. Nf3 {[%clk 0:02:51]}  O-O {[%clk 0:03:01]} 6. Be2 {[%clk 0:02:52]}  Bg4 {[%clk 0:03:02]} 7. Be3 {[%clk 0:02:50]}  Nfd7 {[%clk 0:03:03]} 8. Nd2 {[%clk 0:02:44]}  Bxe2 {[%clk 0:03:01]} 9. Qxe2 {[%clk 0:02:44]}  Nc6 {[%clk 0:03:01]} 10. Nb3 {[%clk 0:02:37]}  e5 {[%clk 0:03:01]} 11. d5 {[%clk 0:02:37]}  Nd4 {[%clk 0:03:02]} 12. Qd1 {[%clk 0:02:36]}  Nxb3 {[%clk 0:02:48]} 13. axb3 {[%clk 0:02:34]}  a5 {[%clk 0:02:46]} 14. O-O {[%clk 0:02:33]}  f5 {[%clk 0:02:46]} 15. f3 {[%clk 0:02:32]}  b6 {[%clk 0:02:47]} 16. Qd2 {[%clk 0:02:16]}  f4 {[%clk 0:02:47]} 17. Bf2 {[%clk 0:02:16]}  h5 {[%clk 0:02:48]} 18. Nb5 {[%clk 0:02:12]}  g5 {[%clk 0:02:43]} 19. b4 {[%clk 0:02:12]}  a4 {[%clk 0:02:42]} 20. b3 {[%clk 0:02:10]}  a3 {[%clk 0:02:40]} 21. Rxa3 {[%clk 0:02:09]}  Rxa3 {[%clk 0:02:40]} 22. Nxa3 {[%clk 0:02:09]}  g4 {[%clk 0:02:41]} 23. c5 {[%clk 0:02:06]}  Rf7 {[%clk 0:02:16]} 24. c6 {[%clk 0:01:57]}  Nf8 {[%clk 0:02:08]} 25. Qe1 {[%clk 0:01:54]}  Bf6 {[%clk 0:02:05]} 26. Nb5 {[%clk 0:01:42]}  Rg7 {[%clk 0:02:05]} 27. Kh1 {[%clk 0:01:25]}  Qc8 {[%clk 0:01:44]} 28. Bh4 {[%clk 0:01:20]}  Bxh4 {[%clk 0:01:45]} 29. Qxh4 {[%clk 0:01:20]}  Qa6 {[%clk 0:01:45]} 30. Qxh5 {[%clk 0:01:11]}  Qxb5 {[%clk 0:01:45]} 31. Ra1 {[%clk 0:01:09]}  Qxb4 {[%clk 0:01:38]} 32. fxg4 {[%clk 0:01:09]}  Qxe4 {[%clk 0:01:38]} 33. h3 {[%clk 0:01:07]}  f3 {[%clk 0:01:37]} 34. gxf3 {[%clk 0:01:03]}  Qxf3+ {[%clk 0:01:38]} 35. Kh2 {[%clk 0:01:02]}  Qf4+ {[%clk 0:01:38]} 36. Kh1 {[%clk 0:01:02]}  Rh7 {[%clk 0:01:38]} 37. Qe8 {[%clk 0:01:01]}  Rxh3+ {[%clk 0:01:38]} 38. Kg2 {[%clk 0:01:01]}  Qf3+ {[%clk 0:01:38]} 0-1


[Site "https://www.chess.com"]

[Event "Titled Tuesday Blitz December 13 Late 2022"]
[White "Gardezi, Arsal"]
[Black "Gritsenko, Nikolai"]
[WhiteFideId "30949521"]
[BlackFideId "14112493"]
[WhiteElo "1906"]
[BlackElo "2389"]
[Result "0-1"]
[Round "01"]
[TimeControl "180+1"]
[Date "2022.12.14"]
[WhiteClock "0:00:15"]
[BlackClock "0:00:10"]

1. d4 {[%clk 0:02:59]}  d5 {[%clk 0:02:59]} 2. c4 {[%clk 0:02:59]}  Nc6 {[%clk 0:03:00]} 3. cxd5 {[%clk 0:02:58]}  Qxd5 {[%clk 0:02:59]} 4. Nf3 {[%clk 0:02:59]}  e5 {[%clk 0:02:59]} 5. Nc3 {[%clk 0:02:56]}  Bb4 {[%clk 0:02:58]} 6. a3 {[%clk 0:02:45]}  Bxc3+ {[%clk 0:02:55]} 7. bxc3 {[%clk 0:02:46]}  Bg4 {[%clk 0:02:38]} 8. h3 {[%clk 0:02:37]}  Bh5 {[%clk 0:02:20]} 9. Nxe5 {[%clk 0:02:24]}  Nxe5 {[%clk 0:02:16]} 10. dxe5 {[%clk 0:02:25]}  Qxe5 {[%clk 0:02:15]} 11. Qb3 {[%clk 0:02:20]}  O-O-O {[%clk 0:02:08]} 12. Be3 {[%clk 0:02:14]}  Ne7 {[%clk 0:01:52]} 13. g4 {[%clk 0:02:07]}  Bg6 {[%clk 0:01:44]} 14. Bg2 {[%clk 0:02:07]}  Be4 {[%clk 0:01:31]} 15. Bxe4 {[%clk 0:01:33]}  Qxe4 {[%clk 0:01:29]} 16. O-O {[%clk 0:01:33]}  h5 {[%clk 0:01:25]} 17. g5 {[%clk 0:01:30]}  Nd5 {[%clk 0:01:12]} 18. c4 {[%clk 0:00:58]}  Nxe3 {[%clk 0:01:05]} 19. Qxe3 {[%clk 0:00:57]}  Qxe3 {[%clk 0:01:05]} 20. fxe3 {[%clk 0:00:58]}  Rd7 {[%clk 0:01:04]} 21. Rf2 {[%clk 0:00:43]}  Re8 {[%clk 0:01:00]} 22. Raf1 {[%clk 0:00:39]}  Ree7 {[%clk 0:00:59]} 23. Rf3 {[%clk 0:00:38]}  g6 {[%clk 0:00:56]} 24. Kg2 {[%clk 0:00:37]}  Kd8 {[%clk 0:00:52]} 25. Rf4 {[%clk 0:00:28]}  Ke8 {[%clk 0:00:50]} 26. R1f3 {[%clk 0:00:26]}  Re5 {[%clk 0:00:43]} 27. Kf2 {[%clk 0:00:25]}  Rde7 {[%clk 0:00:42]} 28. Rd4 {[%clk 0:00:20]}  Rxg5 {[%clk 0:00:35]} 29. Rd3 {[%clk 0:00:18]}  Rge5 {[%clk 0:00:29]} 30. Rb3 {[%clk 0:00:19]}  b6 {[%clk 0:00:28]} 31. Rc3 {[%clk 0:00:20]}  Rd7 {[%clk 0:00:25]} 32. Rd3 {[%clk 0:00:20]}  Rxd3 {[%clk 0:00:20]} 33. exd3 {[%clk 0:00:21]}  Ra5 {[%clk 0:00:19]} 34. Ke2 {[%clk 0:00:17]}  Rxa3 {[%clk 0:00:19]} 35. Rf6 {[%clk 0:00:17]}  a5 {[%clk 0:00:19]} 36. Rc6 {[%clk 0:00:18]}  Kd7 {[%clk 0:00:18]} 37. Rf6 {[%clk 0:00:18]}  Ke7 {[%clk 0:00:17]} 38. Rc6 {[%clk 0:00:19]}  Kd8 {[%clk 0:00:16]} 39. Rf6 {[%clk 0:00:19]}  Ra2+ {[%clk 0:00:16]} 40. Kf3 {[%clk 0:00:19]}  Rh2 {[%clk 0:00:17]} 41. Kg3 {[%clk 0:00:18]}  Rd2 {[%clk 0:00:16]} 42. d4 {[%clk 0:00:18]}  Rc2 {[%clk 0:00:15]} 43. Rc6 {[%clk 0:00:17]}  a4 {[%clk 0:00:14]} 44. c5 {[%clk 0:00:17]}  a3 {[%clk 0:00:14]} 45. Rf6 {[%clk 0:00:15]}  a2 {[%clk 0:00:14]} 46. Rf1 {[%clk 0:00:16]}  b5 {[%clk 0:00:13]} 47. Kf4 {[%clk 0:00:15]}  b4 {[%clk 0:00:13]} 48. Ke4 {[%clk 0:00:14]}  b3 {[%clk 0:00:13]} 49. Kd3 {[%clk 0:00:15]}  Rc1 {[%clk 0:00:10]} 50. Rxc1 {[%clk 0:00:15]}  b2 {[%clk 0:00:10]} 51. Rc2 {[%clk 0:00:14]}  b1=Q {[%clk 0:00:10]} 52. Kc3 {[%clk 0:00:15]}  a1=Q+ {[%clk 0:00:10]} 53. Rb2 {[%clk 0:00:15]}  Qaxb2+ {[%clk 0:00:10]} 0-1


[Site "https://www.chess.com"]

[Event "Titled Tuesday Blitz December 13 Late 2022"]
[White "Gerbelli Neto, Eduardo"]
[Black "Melikyan, Gnel"]
[WhiteFideId "2103281"]
[BlackFideId "54109990"]
[WhiteElo "2178"]
[BlackElo "2138"]
[Result "0-1"]
[Round "01"]
[TimeControl "180+1"]
[Date "2022.12.14"]
[WhiteClock "0:00:54"]
[BlackClock "0:00:46"]

1. e4 {[%clk 0:02:58]}  c6 {[%clk 0:02:59]} 2. d4 {[%clk 0:02:57]}  d5 {[%clk 0:02:59]} 3. exd5 {[%clk 0:02:58]}  cxd5 {[%clk 0:02:59]} 4. c4 {[%clk 0:02:58]}  Nf6 {[%clk 0:02:58]} 5. Nc3 {[%clk 0:02:59]}  e6 {[%clk 0:02:58]} 6. Nf3 {[%clk 0:02:59]}  Nc6 {[%clk 0:02:58]} 7. cxd5 {[%clk 0:02:59]}  Nxd5 {[%clk 0:02:57]} 8. Bd3 {[%clk 0:02:58]}  Be7 {[%clk 0:02:56]} 9. O-O {[%clk 0:02:58]}  h6 {[%clk 0:02:55]} 10. Re1 {[%clk 0:02:58]}  b6 {[%clk 0:02:42]} 11. Nxd5 {[%clk 0:02:49]}  exd5 {[%clk 0:02:28]} 12. Bb5 {[%clk 0:02:43]}  Bd7 {[%clk 0:02:26]} 13. Qa4 {[%clk 0:02:38]}  Rc8 {[%clk 0:02:02]} 14. Ne5 {[%clk 0:01:50]}  Nxe5 {[%clk 0:01:55]} 15. Rxe5 {[%clk 0:01:51]}  Bxb5 {[%clk 0:01:47]} 16. Qxb5+ {[%clk 0:01:52]}  Qd7 {[%clk 0:01:47]} 17. Qxd7+ {[%clk 0:01:47]}  Kxd7 {[%clk 0:01:48]} 18. Rxd5+ {[%clk 0:01:48]}  Kc6 {[%clk 0:01:49]} 19. Re5 {[%clk 0:01:45]}  Bf6 {[%clk 0:01:48]} 20. Re4 {[%clk 0:01:45]}  Kd5 {[%clk 0:01:47]} 21. Rf4 {[%clk 0:01:38]}  Rc2 {[%clk 0:01:32]} 22. Rb1 {[%clk 0:01:25]}  Bxd4 {[%clk 0:01:04]} 23. Rxf7 {[%clk 0:01:22]}  Rhc8 {[%clk 0:01:01]} 24. Be3 {[%clk 0:01:12]}  Rxb2 {[%clk 0:00:47]} 25. Rd1 {[%clk 0:01:12]}  Ke6 {[%clk 0:00:47]} 26. Bxd4 {[%clk 0:01:08]}  Rd2 {[%clk 0:00:46]} 27. Re1+ {[%clk 0:00:54]}  Kxf7 {[%clk 0:00:46]} 0-1


[Site "https://www.chess.com"]

[Event "Titled Tuesday Blitz December 13 Late 2022"]
[White "Hajiyev, Kanan"]
[Black "Svane, Rasmus"]
[WhiteFideId "13404148"]
[BlackFideId "4657101"]
[WhiteElo "2118"]
[BlackElo "2674"]
[Result "0-1"]
[Round "01"]
[TimeControl "180+1"]
[Date "2022.12.13"]
[WhiteClock "0:00:10"]
[BlackClock "0:00:19"]

1. d4 {[%clk 0:03:00]}  d5 {[%clk 0:02:57]} 2. c4 {[%clk 0:02:59]}  e6 {[%clk 0:02:56]} 3. cxd5 {[%clk 0:03:00]}  exd5 {[%clk 0:02:57]} 4. Nc3 {[%clk 0:03:00]}  c6 {[%clk 0:02:57]} 5. Nf3 {[%clk 0:02:59]}  Nf6 {[%clk 0:02:56]} 6. Bg5 {[%clk 0:02:57]}  Be7 {[%clk 0:02:56]} 7. e3 {[%clk 0:02:58]}  Bf5 {[%clk 0:02:56]} 8. Bd3 {[%clk 0:02:57]}  Bxd3 {[%clk 0:02:57]} 9. Qxd3 {[%clk 0:02:58]}  Nbd7 {[%clk 0:02:57]} 10. O-O {[%clk 0:02:58]}  O-O {[%clk 0:02:57]} 11. Rab1 {[%clk 0:02:57]}  a5 {[%clk 0:02:56]} 12. Qc2 {[%clk 0:02:56]}  Re8 {[%clk 0:02:56]} 13. Bf4 {[%clk 0:02:57]}  Nh5 {[%clk 0:02:55]} 14. Bg3 {[%clk 0:02:50]}  Nxg3 {[%clk 0:02:53]} 15. hxg3 {[%clk 0:02:51]}  Bd6 {[%clk 0:02:51]} 16. Ne2 {[%clk 0:02:50]}  Nf6 {[%clk 0:02:47]} 17. Nf4 {[%clk 0:02:49]}  g6 {[%clk 0:02:44]} 18. a3 {[%clk 0:02:36]}  Qe7 {[%clk 0:02:43]} 19. Nd3 {[%clk 0:02:35]}  a4 {[%clk 0:02:38]} 20. Rfc1 {[%clk 0:02:30]}  Ne4 {[%clk 0:02:36]} 21. Nc5 {[%clk 0:02:10]}  Bxc5 {[%clk 0:02:29]} 22. dxc5 {[%clk 0:02:11]}  Ra5 {[%clk 0:02:30]} 23. Nd4 {[%clk 0:01:57]}  Nxc5 {[%clk 0:02:20]} 24. b4 {[%clk 0:01:55]}  axb3 {[%clk 0:02:19]} 25. Nxb3 {[%clk 0:01:53]}  Nxb3 {[%clk 0:02:19]} 26. Qxb3 {[%clk 0:01:50]}  Rb5 {[%clk 0:02:09]} 27. Qd3 {[%clk 0:01:44]}  Rxb1 {[%clk 0:02:07]} 28. Rxb1 {[%clk 0:01:45]}  Ra8 {[%clk 0:02:07]} 29. Qb3 {[%clk 0:01:40]}  Ra7 {[%clk 0:02:06]} 30. a4 {[%clk 0:01:41]}  Qe4 {[%clk 0:02:03]} 31. a5 {[%clk 0:01:31]}  Qe8 {[%clk 0:01:33]} 32. Qb6 {[%clk 0:01:28]}  Qa8 {[%clk 0:01:33]} 33. g4 {[%clk 0:01:20]}  Rxa5 {[%clk 0:01:31]} 34. Qxb7 {[%clk 0:01:18]}  Qxb7 {[%clk 0:01:32]} 35. Rxb7 {[%clk 0:01:19]}  Ra4 {[%clk 0:01:31]} 36. Rc7 {[%clk 0:01:13]}  Rc4 {[%clk 0:01:14]} 37. g5 {[%clk 0:01:13]}  c5 {[%clk 0:01:14]} 38. Kf1 {[%clk 0:01:05]}  Rc1+ {[%clk 0:01:10]} 39. Ke2 {[%clk 0:01:05]}  Rc2+ {[%clk 0:00:59]} 40. Ke1 {[%clk 0:01:01]}  Rc4 {[%clk 0:00:52]} 41. Kd2 {[%clk 0:00:56]}  d4 {[%clk 0:00:44]} 42. exd4 {[%clk 0:00:48]}  Rxd4+ {[%clk 0:00:45]} 43. Ke3 {[%clk 0:00:48]}  Rg4 {[%clk 0:00:37]} 44. Rxc5 {[%clk 0:00:43]}  Rxg2 {[%clk 0:00:37]} 45. f4 {[%clk 0:00:41]}  Kg7 {[%clk 0:00:37]} 46. Rc7 {[%clk 0:00:40]}  Ra2 {[%clk 0:00:35]} 47. Ke4 {[%clk 0:00:39]}  Ra4+ {[%clk 0:00:35]} 48. Ke5 {[%clk 0:00:40]}  Ra1 {[%clk 0:00:35]} 49. Rb7 {[%clk 0:00:38]}  Re1+ {[%clk 0:00:35]} 50. Kd4 {[%clk 0:00:38]}  Kf8 {[%clk 0:00:31]} 51. Kd5 {[%clk 0:00:35]}  Re7 {[%clk 0:00:29]} 52. Rb8+ {[%clk 0:00:34]}  Kg7 {[%clk 0:00:29]} 53. Kd4 {[%clk 0:00:30]}  h6 {[%clk 0:00:22]} 54. gxh6+ {[%clk 0:00:29]}  Kxh6 {[%clk 0:00:23]} 55. Rh8+ {[%clk 0:00:28]}  Kg7 {[%clk 0:00:23]} 56. Rh2 {[%clk 0:00:29]}  Kf6 {[%clk 0:00:22]} 57. Rh4 {[%clk 0:00:15]}  Kf5 {[%clk 0:00:22]} 58. Kd5 {[%clk 0:00:16]}  f6 {[%clk 0:00:21]} 59. Rh6 {[%clk 0:00:15]}  Re1 {[%clk 0:00:18]} 60. Rh4 {[%clk 0:00:10]}  Rd1+ {[%clk 0:00:18]} 61. Kc4 {[%clk 0:00:10]}  Rf1 {[%clk 0:00:19]} 0-1


[Site "https://www.chess.com"]

[Event "Titled Tuesday Blitz December 13 Late 2022"]
[White "Ibarra Jerez, Jose Carlos"]
[Black "Sztokbant, Bernardo Vainzoff"]
[WhiteFideId "2226332"]
[BlackFideId "2115956"]
[WhiteElo "2878"]
[BlackElo "2456"]
[Result "1-0"]
[Round "01"]
[TimeControl "180+1"]
[Date "2022.12.14"]
[WhiteClock "0:00:46"]
[BlackClock "0:00:23"]

1. e4 {[%clk 0:02:58]}  c5 {[%clk 0:03:00]} 2. Nc3 {[%clk 0:02:58]}  Nc6 {[%clk 0:03:00]} 3. Nf3 {[%clk 0:02:58]}  d6 {[%clk 0:02:59]} 4. d4 {[%clk 0:02:57]}  cxd4 {[%clk 0:03:00]} 5. Nxd4 {[%clk 0:02:56]}  Nf6 {[%clk 0:03:00]} 6. Nd5 {[%clk 0:02:56]}  e6 {[%clk 0:02:46]} 7. Nxf6+ {[%clk 0:02:55]}  Qxf6 {[%clk 0:02:46]} 8. Nb5 {[%clk 0:02:55]}  Qd8 {[%clk 0:02:45]} 9. c4 {[%clk 0:02:56]}  a6 {[%clk 0:02:45]} 10. Nc3 {[%clk 0:02:56]}  Be7 {[%clk 0:02:45]} 11. Be3 {[%clk 0:02:57]}  O-O {[%clk 0:02:46]} 12. Be2 {[%clk 0:02:58]}  Qa5 {[%clk 0:02:42]} 13. O-O {[%clk 0:02:57]}  Rd8 {[%clk 0:02:41]} 14. a3 {[%clk 0:02:56]}  Qc7 {[%clk 0:02:37]} 15. Rc1 {[%clk 0:02:56]}  Bd7 {[%clk 0:02:36]} 16. Na4 {[%clk 0:02:52]}  Re8 {[%clk 0:02:23]} 17. Nb6 {[%clk 0:02:47]}  Rad8 {[%clk 0:02:23]} 18. b4 {[%clk 0:02:48]}  Ne5 {[%clk 0:02:23]} 19. f4 {[%clk 0:02:45]}  Ng6 {[%clk 0:02:23]} 20. Qb3 {[%clk 0:02:35]}  Bc6 {[%clk 0:02:23]} 21. Nd5 {[%clk 0:02:30]}  exd5 {[%clk 0:02:22]} 22. cxd5 {[%clk 0:02:29]}  Bxd5 {[%clk 0:01:47]} 23. Qxd5 {[%clk 0:02:28]}  Qd7 {[%clk 0:01:45]} 24. Bc4 {[%clk 0:02:27]}  Bf6 {[%clk 0:01:45]} 25. Rcd1 {[%clk 0:02:23]}  Qe7 {[%clk 0:01:37]} 26. Bb6 {[%clk 0:02:17]}  Qxe4 {[%clk 0:01:30]} 27. Qxf7+ {[%clk 0:02:11]}  Kh8 {[%clk 0:01:31]} 28. Bxd8 {[%clk 0:02:12]}  Bxd8 {[%clk 0:01:09]} 29. Kh1 {[%clk 0:01:19]}  Rf8 {[%clk 0:01:03]} 30. Qd5 {[%clk 0:01:17]}  Qe3 {[%clk 0:00:57]} 31. Rd3 {[%clk 0:01:09]}  Qb6 {[%clk 0:00:31]} 32. Rh3 {[%clk 0:01:05]}  Qc6 {[%clk 0:00:23]} 33. Rxh7+ {[%clk 0:00:47]}  Kxh7 {[%clk 0:00:23]} 34. Qh5# {[%clk 0:00:46]} 1-0


[Site "https://www.chess.com"]